fUST/lending_fUST_20251012
["ID","MTS","AMOUNT","RATE_DAILY","PERIOD"]
[390905175,1760208650483,-500.0,0.00024657,9]
[390905176,1760208650492,-500.0,0.00024657,9]
[390905177,1760208650501,-500.0,0.00024657,9]
[390905178,1760208650510,-500.0,0.00024657,9]
[390905179,1760208650519,-500.0,0.00024657,9]
[390905180,1760208650528,-500.0,0.00024657,9]
[390905181,1760208650538,-500.0,0.00024657,9]
[390905182,1760208650547,-500.0,0.00024657,9]
[390905183,1760208650557,-407.38,0.00024657,9]
[390905184,1760208650569,-500.0,0.00024657,9]
[390905185,1760208650578,-500.0,0.00024657,9]
[390905186,1760208650587,-500.0,0.00024657,9]
[390905187,1760208650596,-500.0,0.00024657,9]
[390905188,1760208650609,-500.0,0.00024657,9]
[390905189,1760208650621,-511.54,0.00024657,9]
[390905190,1760208650630,-500.0,0.00024657,9]
[390905191,1760208650640,-500.0,0.00024657,9]
[390905192,1760208650649,-500.0,0.00024657,9]
[390905193,1760208650659,-500.0,0.00024657,9]
[390905194,1760208650668,-500.0,0.00024657,9]
[390905195,1760208650678,-500.0,0.00024657,9]
[390905196,1760208650688,-500.0,0.00024657,9]
[390905197,1760208650697,-500.0,0.00024657,9]
[390905198,1760208650706,-500.0,0.00024657,9]
[390905199,1760208650715,-500.0,0.00024657,9]
[390905200,1760208650724,-500.0,0.00024657,9]
[390905201,1760208650733,-162.84,0.00024657,9]
[390905202,1760208650743,-500.0,0.00024657,9]
[390905203,1760208650752,-500.0,0.00024657,9]
[390905204,1760208650761,-500.0,0.00024657,9]
[390905205,1760208650770,-3888.7,0.00024657,9]
[390905206,1760208650779,-500.0,0.00024657,9]
[390905207,1760208650791,-3888.7,0.00024657,9]
[390905208,1760208650810,-500.0,0.00024657,9]
[390905209,1760208650820,-3888.7,0.00024657,9]
[390905210,1760208650830,-500.0,0.00024657,9]
[390905211,1760208650839,-3888.7,0.00024657,9]
[390905212,1760208650848,-500.0,0.00024657,9]
[390905213,1760208650857,-520.53149262,0.00024657,9]
[390905214,1760208650867,-500.0,0.00024657,9]
[390905215,1760208650880,-500.0,0.00024657,9]
[390905216,1760208650889,-500.0,0.00024657,9]
[390905217,1760208650898,-500.0,0.00024657,9]
[390905218,1760208650910,-500.0,0.00024657,9]
[390905219,1760208650927,-500.0,0.00024657,9]
[390905220,1760208650938,-500.0,0.00024657,9]
[390905221,1760208650948,-500.0,0.00024657,9]
[390905222,1760208650959,-441.28637136,0.00024657,9]
[390905223,1760208650969,-500.0,0.00024657,9]
[390905224,1760208650978,-500.0,0.00024657,9]
[390905225,1760208650988,-500.0,0.00024657,9]
[390905226,1760208650997,-500.0,0.00024657,9]
[390905227,1760208651007,-500.0,0.00024657,9]
[390905228,1760208651017,-486.41,0.00024657,9]
[390905229,1760208651026,-200.0,0.00024658,15]
[390905230,1760208651036,-151.0,0.00024658,7]
[390905231,1760208651045,-500.0,0.00024672,9]
[390905232,1760208651054,-558.54,0.00024672,9]
[390905233,1760208651063,-500.0,0.00024673,2]
[390905234,1760208651072,-500.0,0.00024673,2]
[390905235,1760208651082,-215.12409197,0.00024673,2]
[390905236,1760208651091,-248.75355055,0.00024673,2]
[390905237,1760208651100,-500.0,0.00024673,2]
[390905238,1760208651109,-500.0,0.00024673,2]
[390905239,1760208651118,-500.0,0.00024673,2]
[390905240,1760208651127,-500.0,0.00024673,2]
[390905241,1760208651136,-500.0,0.00024673,2]
[390905242,1760208651146,-500.0,0.00024673,2]
[390905243,1760208651156,-320.63419957,0.00024673,2]
[390905244,1760208651165,-501.07479901,0.00024673,2]
[390905245,1760208651174,-498.51325855,0.00024673,2]
[390905246,1760208651185,-500.66067143,0.00024673,2]
[390905247,1760208651194,-500.0,0.00024673,2]
[390905248,1760208651204,-500.0,0.00024673,2]
[390905249,1760208651214,-500.0,0.00024673,2]
[390905250,1760208651224,-151.0,0.000247,6]
[390905251,1760208651233,-151.0,0.00024712,9]
[390905252,1760208651243,-500.0,0.00024712,9]
[390905253,1760208651253,-500.0,0.00024712,9]
[390905254,1760208651263,-151.0,0.00024712,9]
[390905255,1760208651272,-151.0,0.00024712,9]
[390905256,1760208651281,-151.0,0.00024712,9]
[390905257,1760208651291,-500.0,0.00024712,9]
[390905258,1760208651300,-151.0,0.00024712,9]
[390905259,1760208651310,-151.0,0.00024712,9]
[390905260,1760208651319,-224.22324818,0.00024712,9]
[390905261,1760208651329,-151.0,0.00024767,9]
[390905262,1760208651339,-491.29465425,0.00024767,9]
[390905263,1760208651348,-500.0,0.00024767,9]
[390905264,1760208651358,-151.0,0.00024767,9]
[390905265,1760208651367,-151.0,0.00024767,9]
[390905266,1760208651376,-198.0,0.00024767,9]
[390905267,1760208651386,-256.87937848,0.00024767,9]
[390905268,1760208651395,-245.0,0.00024767,9]
[390905269,1760208651406,-151.0,0.00024767,9]
[390905270,1760208651415,-667.07428397,0.00024768,2]
[390905271,1760208651425,-175.0,0.00024771,3]
[390905272,1760208651435,-175.0,0.00024771,3]
[390905273,1760208651444,-175.0,0.00024771,3]
[390905274,1760208651453,-175.09993288,0.00024771,3]
[390905275,1760208651463,-157.0,0.00024771,3]
[390905276,1760208651474,-157.0,0.00024771,3]
[390905277,1760208651483,-157.0,0.00024771,3]
[390905278,1760208651493,-157.0,0.00024771,3]
[390905279,1760208651503,-157.0,0.00024771,3]
[390905280,1760208651513,-157.0,0.00024771,3]
[390905281,1760208651523,-160.05791752,0.00024771,3]
[390905282,1760208651533,-329.0,0.00024771,3]
[390905283,1760208651543,-329.0,0.00024771,3]
[390905284,1760208651552,-329.0,0.00024771,3]
[390905285,1760208651562,-329.0,0.00024771,3]
[390905286,1760208651571,-329.0,0.00024771,3]
[390905287,1760208651581,-329.0,0.00024771,3]
[390905288,1760208651590,-329.0,0.00024771,3]
[390905289,1760208651600,-329.0,0.00024771,3]
[390905290,1760208651610,-329.0,0.00024771,3]
[390905291,1760208651620,-329.0,0.00024771,3]
[390905292,1760208651629,-329.0,0.00024771,3]
[390905293,1760208651639,-329.0,0.00024771,3]
[390905294,1760208651648,-329.0,0.00024771,3]
[390905295,1760208651657,-329.0,0.00024771,3]
[390905296,1760208651667,-329.0,0.00024771,3]
[390905297,1760208651676,-329.0,0.00024771,3]
[390905298,1760208651687,-329.0,0.00024771,3]
[390905299,1760208651696,-329.0,0.00024771,3]
[390905300,1760208651706,-329.0,0.00024771,3]
[390905301,1760208651716,-329.0,0.00024771,3]
[390905302,1760208651726,-329.0,0.00024771,3]
[390905303,1760208651736,-329.0,0.00024771,3]
[390905304,1760208651745,-329.0,0.00024771,3]
[390905305,1760208651755,-329.0,0.00024771,3]
[390905306,1760208651765,-329.0,0.00024771,3]
[390905307,1760208651776,-334.41020079,0.00024771,3]
[390905308,1760208651787,-500.0,0.00024772,2]
[390905309,1760208651797,-870.453732,0.00024772,2]
[390905310,1760208651806,-500.0,0.00024773,2]
[390905311,1760208651816,-500.0,0.00024773,2]
[390905312,1760208651826,-635.17506224,0.00024773,2]
[390905313,1760208651835,-500.33211956,0.00024773,2]
[390905314,1760208651845,-212.694,0.00024794,8]
[390905315,1760208651854,-1559.8,0.00024799,9]
[390905316,1760208651864,-1559.8,0.00024799,9]
[390905317,1760208651879,-1559.8,0.00024799,9]
[390905318,1760208651888,-1559.8,0.00024799,9]
[390905319,1760208651898,-1559.8,0.00024799,9]
[390905320,1760208651908,-1559.8,0.00024799,9]
[390905321,1760208651918,-1559.8,0.00024799,9]
[390905322,1760208651927,-1559.88358556,0.00024799,9]
[390905323,1760208651940,-500.0,0.00024799,9]
[390905324,1760208651950,-500.0,0.00024799,9]
[390905325,1760208651961,-500.0,0.00024799,9]
[390905326,1760208651970,-500.0,0.00024799,9]
[390905327,1760208651979,-500.0,0.00024799,9]
[390905328,1760208651992,-500.0,0.00024799,9]
[390905329,1760208652007,-500.0,0.00024799,9]
[390905330,1760208652016,-477.1,0.00024799,9]
[390905331,1760208652025,-500.0,0.00024799,9]
[390905332,1760208652034,-500.0,0.00024799,9]
[390905333,1760208652044,-500.0,0.00024799,9]
[390905334,1760208652053,-500.0,0.00024799,9]
[390905335,1760208652064,-500.0,0.00024799,9]
[390905336,1760208652073,-153.1,0.00024799,9]
[390905337,1760208652083,-151.0,0.000248,10]
[390905338,1760208652092,-151.0,0.000248,7]
[390905339,1760208652101,-151.0,0.000248,13]
[390905340,1760208652110,-4750.84840952,0.000248,2]
[390905341,1760208652119,-212.92584412,0.000248,2]
[390905342,1760208652129,-3199.0,0.00024817,2]
[390905343,1760208652138,-151.0,0.00024821,9]
[390905344,1760208652147,-500.0,0.00024821,9]
[390905345,1760208652156,-151.0,0.00024821,9]
[390905346,1760208652165,-205.80567964,0.00024821,9]
[390905347,1760208652174,-151.0,0.00024821,9]
[390905348,1760208652184,-394.0,0.00024833,2]
[390905349,1760208652194,-500.0,0.00024851,9]
[390905350,1760208652203,-500.0,0.00024851,9]
[390905351,1760208652212,-394.0,0.00024864,2]
[390905352,1760208652221,-501.34363723,0.00024873,2]
[390905353,1760208652230,-500.0,0.00024873,2]
[390905354,1760208652240,-500.0,0.00024873,2]
[390905355,1760208652250,-502.26458203,0.00024873,2]
[390905356,1760208652259,-150.0,0.00024873,2]
[390905357,1760208652269,-161.52818085,0.00024873,2]
[390905358,1760208652278,-245.0,0.00024876,9]
[390905359,1760208652287,-500.0,0.00024876,9]
[390905360,1760208652296,-151.0,0.00024876,9]
[390905361,1760208652305,-151.0,0.000249,7]
[390905362,1760208652314,-151.0,0.000249,7]
[390905363,1760208652324,-151.0,0.000249,7]
[390905364,1760208652333,-186.446428,0.000249,7]
[390905365,1760208652343,-151.0,0.000249,7]
[390905366,1760208652353,-654609.115658,0.000249,2]
[390905367,1760208652362,-151.0,0.000249,7]
[390905368,1760208652371,-500.0,0.00024931,9]
[390905369,1760208652380,-213.08097716,0.00024931,9]
[390905370,1760208652389,-151.0,0.00024931,9]
[390905371,1760208652399,-245.50022833,0.00024931,9]
[390905372,1760208652408,-261.78584438,0.00024931,9]
[390905373,1760208652418,-151.0,0.00024931,9]
[390905374,1760208652428,-151.0,0.00024931,9]
[390905375,1760208652438,-282.44633068,0.00024931,9]
[390905376,1760208652447,-151.0,0.00024931,9]
[390905377,1760208652457,-151.0,0.00024931,9]
[390905378,1760208652466,-500.0,0.00024986,9]
[390905379,1760208652476,-151.0,0.00024986,9]
[390905380,1760208652485,-151.0,0.00024986,9]
[390905381,1760208652495,-151.0,0.00024986,9]
[390905382,1760208652504,-151.0,0.00024986,9]
[390905383,1760208652514,-232.23281477,0.00024986,9]
[390905384,1760208652524,-394.0,0.00025008,2]
[390905385,1760208652533,-2441.780584,0.0002503,2]
[390905386,1760208652542,-500.0,0.00025041,9]
[390905387,1760208652551,-160.79501055,0.00025041,9]
[390905388,1760208652561,-157.17235922,0.00025041,9]
[390905389,1760208652570,-245.0,0.00025041,9]
[390905390,1760208652580,-151.0,0.00025041,9]
[390905391,1760208652593,-500.0,0.00025046,2]
[390905392,1760208652607,-2609.37557469,0.0002505,3]
[390905393,1760208652616,-4216.1,0.0002505,3]
[390905394,1760208652626,-2108.04,0.0002505,3]
[390905395,1760208652635,-1054.02,0.0002505,3]
[390905396,1760208652644,-527.02,0.0002505,3]
[390905397,1760208652653,-1500.0,0.00025068,2]
[390905398,1760208652662,-500.0,0.00025068,2]
[390905399,1760208652671,-3199.0,0.00025075,2]
[390905400,1760208652680,-450.40639145,0.00025077,2]
[390905401,1760208652690,-179.60486929,0.00025085,2]
[390905402,1760208652699,-500.0,0.00025095,9]
[390905403,1760208652796,-151.0,0.00025095,9]
[390905404,1760208652806,-200.0,0.000251,7]
[390905405,1760208652815,-1000.0,0.00025142,2]
[390905406,1760208652824,-466.0,0.0002515,9]
[390905407,1760208652833,-183.67860669,0.0002515,9]
[390905408,1760208652842,-394.0,0.00025162,2]
[390905409,1760208652852,-151.0,0.000252,13]
[390905410,1760208652861,-394.0,0.00025213,2]
[390905411,1760208652874,-1000.0,0.00025221,2]
[390905412,1760208652883,-507.55432842,0.00025221,2]
[390905413,1760208652892,-1000.0,0.00025221,2]
[390905414,1760208652902,-500.0,0.00025221,2]
[390905415,1760208652911,-423.66194359,0.00025221,2]
[390905416,1760208652922,-1002.45008947,0.00025221,2]
[390905417,1760208652933,-1000.0,0.00025221,2]
[390905418,1760208652943,-1000.0,0.00025221,2]
[390905419,1760208652954,-3199.0,0.00025241,2]
[390905420,1760208652963,-394.0,0.00025308,2]
[390905421,1760208652972,-500.0,0.0002532,2]
[390905422,1760208652981,-300.0,0.000254,2]
[390905423,1760208652991,-300.0,0.000254,2]
[390905424,1760208652999,-300.0,0.000254,2]
[390905425,1760208653008,-300.0,0.000254,2]
[390905426,1760208653017,-1000.0,0.00025421,2]
[390905427,1760208653027,-500.0,0.00025421,2]
[390905428,1760208653036,-187.76775891,0.00025421,2]
[390905429,1760208653046,-150.0,0.00025425,2]
[390905430,1760208653056,-394.0,0.00025446,2]
[390905431,1760208653065,-150.0,0.00025489,7]
[390905432,1760208653075,-154.809388,0.00025514,9]
[390905433,1760208653084,-500.0,0.00025594,2]
[390905434,1760208653094,-154.809388,0.000256,3]
[390905435,1760208653103,-2000.0,0.00025616,2]
[390905436,1760208653112,-154.809388,0.00025672,20]
[390905437,1760208653122,-489.01265358,0.00025677,2]
[390905438,1760208653131,-2717.43,0.00025709,2]
[390905439,1760208653141,-2967.78935889,0.0002573,2]
[390905440,1760208653151,-1500.0,0.00025768,2]
[390905441,1760208653160,-1613.24865582,0.00025768,2]
[390905442,1760208653169,-1500.0,0.00025768,2]
[390905443,1760208653178,-1500.0,0.00025768,2]
[390905444,1760208653187,-152.198179,0.00025785,9]
[390905445,1760208653197,-154.809388,0.00025785,9]
[390905446,1760208653207,-152.198179,0.0002585,3]
[390905447,1760208653216,-154.809388,0.0002585,3]
[390905448,1760208653226,-500.0,0.00025868,2]
[390905449,1760208653235,-540.0,0.0002588,2]
[390905450,1760208653245,-200.0,0.00025882,2]
[390905451,1760208653254,-587.0,0.00025882,2]
[390905452,1760208653263,-587.0,0.00025882,2]
[390905453,1760208653273,-197.0,0.0002595,13]
[390905454,1760208653283,-1000.0,0.00025968,2]
[390905455,1760208653293,-300.0,0.00025973,2]
[390905456,1760208653302,-1555.84,0.00026027,2]
[390905457,1760208653311,-168.14177406,0.00026036,9]
[390905458,1760208653320,-152.198179,0.000261,3]
[390905459,1760208653329,-154.809388,0.000261,3]
[390905460,1760208653338,-2351.0,0.00026124,2]
[390905461,1760208653348,-500.0,0.00026142,2]
[390905462,1760208653358,-2500.0,0.00026164,2]
[390905463,1760208653367,-300.0,0.000262,2]
[390905464,1760208653376,-300.0,0.000262,2]
[390905465,1760208653385,-527.6189157,0.00026277,2]
[390905466,1760208653394,-2351.0,0.00026314,2]
[390905467,1760208653403,-2000.0,0.00026316,2]
[390905468,1760208653412,-2000.0,0.00026316,2]
[390905469,1760208653422,-2000.0,0.00026316,2]
[390905470,1760208653431,-152.198179,0.00026408,20]
[390905471,1760208653441,-154.809388,0.00026408,20]
[390905472,1760208653450,-500.0,0.00026416,2]
[390905473,1760208653459,-2609.37557469,0.00026429,2]
[390905474,1760208653469,-155.29549428,0.00026457,7]
[390905475,1760208653479,-1456.1367073,0.00026512,2]
[390905476,1760208653489,-721.51594785,0.00026512,2]
[390905477,1760208653498,-450.0,0.00026521,2]
[390905478,1760208653507,-720.0,0.00026579,30]
[390905479,1760208653517,-300.0,0.000266,2]
[390905480,1760208653526,-300.0,0.000266,2]
[390905481,1760208653535,-357.47083217,0.0002669,2]
[390905482,1760208653544,-3000.0,0.00026712,2]
[390905483,1760208653554,-2159.0,0.0002679,2]
[390905484,1760208653564,-630.0,0.0002679,2]
[390905485,1760208653573,-4196.0,0.0002679,2]
[390905486,1760208653582,-10023.16494877,0.000268,2]
[390905487,1760208653591,-2500.0,0.00026864,2]
[390905488,1760208653600,-1005.68056906,0.00026864,2]
[390905489,1760208653609,-2500.0,0.00026864,2]
[390905490,1760208653619,-566.22517783,0.00026877,2]
[390905491,1760208653628,-2967.78935889,0.00026903,2]
[390905492,1760208653637,-600.0,0.00027069,2]
[390905493,1760208653646,-153.0,0.00027082,2]
[390905494,1760208653655,-153.0,0.00027082,2]
[390905495,1760208653664,-153.0,0.00027082,2]
[390905496,1760208653673,-1000.0,0.00027123,10]
[390905497,1760208653683,-1000.0,0.00027123,10]
[390905498,1760208653692,-1000.0,0.00027123,10]
[390905499,1760208653701,-1000.0,0.00027123,10]
[390905500,1760208653710,-1000.0,0.00027123,10]
[390905501,1760208653720,-1000.0,0.00027123,10]
[390905502,1760208653729,-1000.0,0.00027123,10]
[390905503,1760208653738,-1000.0,0.00027123,10]
[390905504,1760208653747,-1000.0,0.00027123,10]
[390905505,1760208653756,-1000.0,0.00027123,10]
[390905506,1760208653766,-1000.0,0.00027123,10]
[390905507,1760208653775,-1000.0,0.00027123,10]
[390905508,1760208653784,-1000.0,0.00027123,10]
[390905509,1760208653793,-1000.0,0.00027123,10]
[390905510,1760208653803,-1000.0,0.00027123,10]
[390905511,1760208653813,-1000.0,0.00027123,10]
[390905512,1760208653822,-1000.0,0.00027123,10]
[390905513,1760208653831,-1000.0,0.00027123,10]
[390905514,1760208653840,-1000.0,0.00027123,10]
[390905515,1760208653849,-1000.0,0.00027123,10]
[390905516,1760208653858,-1000.0,0.00027123,10]
[390905517,1760208653868,-1000.0,0.00027123,10]
[390905518,1760208653880,-1000.0,0.00027123,10]
[390905519,1760208653889,-466.16538687,0.00027123,10]
[390905520,1760208653898,-152.198179,0.00027144,20]
[390905521,1760208653908,-154.809388,0.00027144,20]
[390905522,1760208653918,-150.0,0.00027173,2]
[390905523,1760208653927,-2609.37557469,0.000272,10]
[390905524,1760208653937,-1499.9357,0.0002726,2]
[390905525,1760208653950,-1000.0,0.0002738,5]
[390905526,1760208653960,-1600.0,0.00027396,7]
[390905527,1760208653969,-1000.0,0.00027397,30]
[390905528,1760208653978,-1000.0,0.00027397,30]
[390905529,1760208653987,-1000.0,0.00027397,30]
[390905530,1760208653996,-1000.0,0.00027397,30]
[390905531,1760208654006,-1000.0,0.00027397,30]
[390905532,1760208654016,-1135.99673508,0.00027397,30]
[390905533,1760208654025,-1555.84,0.00027397,4]
[390905534,1760208654035,-300.0,0.00027397,30]
[390905535,1760208654045,-300.0,0.00027397,30]
[390905536,1760208654055,-300.0,0.00027397,30]
[390905537,1760208654064,-300.0,0.00027397,30]
[390905538,1760208654074,-300.0,0.00027397,30]
[390905539,1760208654084,-300.0,0.00027397,30]
[390905540,1760208654093,-300.0,0.00027397,30]
[390905541,1760208654103,-300.0,0.00027397,30]
[390905542,1760208654112,-300.0,0.00027397,30]
[390905543,1760208654121,-300.0,0.00027397,30]
[390905544,1760208654131,-300.0,0.00027397,30]
[390905545,1760208654140,-300.0,0.00027397,30]
[390905546,1760208654150,-300.0,0.00027397,30]
[390905547,1760208654159,-300.0,0.00027397,30]
[390905548,1760208654169,-300.0,0.00027397,30]
[390905549,1760208654179,-300.0,0.00027397,30]
[390905550,1760208654191,-300.0,0.00027397,30]
[390905551,1760208654200,-300.0,0.00027397,30]
[390905552,1760208654210,-300.0,0.00027397,30]
[390905553,1760208654220,-300.0,0.00027397,30]
[390905554,1760208654229,-300.0,0.00027397,30]
[390905555,1760208654239,-300.0,0.00027397,30]
[390905556,1760208654248,-300.0,0.00027397,30]
[390905557,1760208654258,-200.461075,0.00027397,30]
[390905558,1760208654268,-150.0,0.00027397,5]
[390905559,1760208654278,-4208.83,0.000274,2]
[390905560,1760208654288,-8357.96,0.000274,2]
[390905561,1760208654298,-2609.37557469,0.000274,30]
[390905562,1760208654307,-2505.15323595,0.00027412,5]
[390905563,1760208654316,-3000.0,0.00027412,5]
[390905564,1760208654326,-3260.91,0.00027423,2]
[390905565,1760208654336,-604.83143995,0.00027477,2]
[390905566,1760208654345,-827.0321429,0.00027617,5]
[390905567,1760208654355,-225.31606,0.000277,120]
[390905568,1760208654363,-197.0,0.0002771,18]
[390905569,1760208654373,-250.0,0.00027721,5]
[390905570,1760208654382,-250.0,0.00027945,5]
[390905571,1760208654391,-3500.0,0.0002796,5]
[390905572,1760208654401,-2967.78935889,0.00028075,2]
[390905573,1760208654410,-643.43770208,0.00028077,2]
[390905574,1760208654419,-223.0,0.00028127,2]
[390905575,1760208654428,-823.0,0.00028127,2]
[390905576,1760208654438,-655.71645154,0.00028129,2]
[390905577,1760208654448,-1600.0,0.00028218,7]
[390905578,1760208654457,-350.0,0.00028268,5]
[390905579,1760208654467,-225.31606,0.000284,120]
[390905580,1760208654475,-350.0,0.00028493,5]
[390905581,1760208654484,-160.0,0.000285,7]
[390905582,1760208654494,-4000.0,0.00028508,5]
[390905583,1760208654503,-3292.0,0.00028524,2]
[390905584,1760208654512,-1087.0,0.00028586,2]
[390905585,1760208654522,-682.0439642,0.00028677,2]
[390905586,1760208654531,-1358.6803716,0.0002874,2]
[390905587,1760208654540,-1555.84,0.00028767,6]
[390905588,1760208654549,-170.16703498,0.00028773,120]
[390905589,1760208654558,-450.0,0.00028816,5]
[390905590,1760208654568,-364.8538022,0.00028846,2]
[390905591,1760208654577,-165.67969004,0.0002887,2]
[390905592,1760208654587,-1456.1367073,0.000289,2]
[390905593,1760208654596,-165.67969004,0.0002897,2]
[390905594,1760208654605,-150.0,0.00028973,5]
[390905595,1760208654615,-500.0,0.00028973,5]
[390905596,1760208654624,-420544.46628516,0.00029,120]
[390905597,1760208655237,-16078.10458696,0.00029,120]
[390905598,1760208655249,-683.25000001,0.00029,120]
[390905599,1760208655260,-1800.0,0.00029,120]
[390905600,1760208655273,-480.0,0.00029,120]
[390905601,1760208655514,-3e-08,0.00029,120]
[390905602,1760208655530,-228.119505,0.00024657,7]
[390905603,1760208655540,-186488.5007529,0.00029,120]
[390905604,1760208655549,-151.0,0.00029,30]
[390905605,1760208655560,-171.776172,0.00029,30]
[390905606,1760208655570,-276.265,0.00029,30]
[390905607,1760208655579,-151.0,0.00029,30]
[390905608,1760208655588,-2609.37557469,0.00029,120]
[390905609,1760208655597,-151.0,0.00029,30]
[390905610,1760208655606,-160.0,0.00029,10]
[390905611,1760208655615,-1128.18391511,0.00029,2]
[390905612,1760208655624,-2609.37557469,0.00029,7]
[390905613,1760208655633,-163.309989,0.00029,30]
[390905614,1760208655643,-1016.76,0.00029,2]
[390905615,1760208655652,-160.0,0.00029,10]
[390905616,1760208655662,-150.0,0.00029001,7]
[390905617,1760208655671,-1600.0,0.0002904,7]
[390905618,1760208655680,-450.0,0.00029041,5]
[390905619,1760208655689,-4500.0,0.00029056,5]
[390905620,1760208655698,-165.67969004,0.0002907,2]
[390905621,1760208655707,-777.40354,0.000291,120]
[390905622,1760208655716,-8357.96,0.000291,2]
[390905623,1760208655725,-225.31606,0.000291,120]
[390905624,1760208655734,-3804.4,0.00029137,2]
[390905625,1760208655743,-165.67969004,0.0002917,2]
[390905626,1760208655753,-1016.76,0.00029174,2]
[390905627,1760208655763,-250.0,0.00029215,2]
[390905628,1760208655772,-864.0,0.00029237,30]
[390905629,1760208655782,-2967.78935889,0.00029248,2]
[390905630,1760208655791,-165.67969004,0.0002927,2]
[390905631,1760208655800,-720.65022633,0.00029277,2]
[390905632,1760208655809,-154.809388,0.00029337,10]
[390905633,1760208655819,-1016.76,0.00029348,2]
[390905634,1760208655828,-200.0,0.00029349,120]
[390905635,1760208655838,-550.0,0.00029364,5]
[390905636,1760208655847,-165.67969004,0.0002937,2]
[390905637,1760208655856,-4208.83,0.000294,2]
[390905638,1760208655866,-150.0,0.00029416,2]
[390905639,1760208655879,-150.0,0.00029416,2]
[390905640,1760208655888,-300.0402692,0.0002947,20]
[390905641,1760208655897,-165.67969004,0.0002947,2]
[390905642,1760208655906,-197.0,0.0002948,23]
[390905643,1760208655916,-200.0,0.00029488,120]
[390905644,1760208655926,-250.0,0.00029521,5]
[390905645,1760208655936,-1000.0,0.00029521,5]
[390905646,1760208655948,-10422.81488817,0.00029549,10]
[390905647,1760208655958,-153.5971104,0.00029568,30]
[390905648,1760208655967,-228.5124919,0.00029568,30]
[390905649,1760208655977,-588.4106815,0.00029568,30]
[390905650,1760208655986,-189.7226975,0.00029568,30]
[390905651,1760208655995,-162.8757457,0.00029568,30]
[390905652,1760208656005,-297.8851395,0.00029568,30]
[390905653,1760208656014,-588.4106815,0.00029568,30]
[390905654,1760208656023,-153.0,0.00029568,30]
[390905655,1760208656033,-550.0,0.00029589,5]
[390905656,1760208656042,-272.645,0.0002959,2]
[390905657,1760208656052,-154.0,0.000296,120]
[390905658,1760208656062,-5000.0,0.00029604,5]
[390905659,1760208656072,-485.885386,0.00029726,60]
[390905660,1760208656081,-2159.0,0.0002979,2]
[390905661,1760208656091,-630.0,0.0002979,2]
[390905662,1760208656100,-777.40354,0.000298,120]
[390905663,1760208656109,-225.31606,0.000298,120]
[390905664,1760208656119,-1600.0,0.00029862,7]
[390905665,1760208656128,-759.25648845,0.00029877,2]
[390905666,1760208656137,-2609.37557469,0.000299,120]
[390905667,1760208656146,-650.0,0.00029912,5]
[390905668,1760208656156,-1000.0,0.0003,6]
[390905669,1760208656166,-222.69375,0.0003,2]
[390905670,1760208656175,-1126.0,0.0003,7]
[390905671,1760208656184,-273.73040811,0.00030065,30]
[390905672,1760208656193,-350.0,0.00030068,5]
[390905673,1760208656202,-802.73273547,0.00030068,5]
[390905674,1760208656212,-154.809388,0.00030074,2]